Cogmind - Beta 14 @@@ ROGUE MODE // 2024.10.11 @ 22:07:20 Player: Minty Result: Destroyed by S-27 Virus with Autogun Performance ------------- Evolutions (3) 1500 Regions Visited (12) 2400 Robots Destroyed (62) 310 Value Destroyed (1776) 1776 Prototype IDs (239) 4780 Alien Tech Used (0) 0 Bonus (3051) 3051 TOTAL SCORE: 13817 Bonus ------- Follower Combat Kills 114 Met Data Miner 300 Used Data Conduit 3000 Friendly Fire -363 Cogmind --------- Core Integrity 0/700 Matter 300/300 Energy 98/100 System Corruption 0% Temperature Cool (0) Movement Core (50) Location -6/Proximity Caves Parts ------- > --- POWER (1) -------- (None) > --- PROPULSION (3) --- (None) > --- UTILITY (6) ------ Advanced Terrain Scan Processor > --- WEAPON (3) ------- (None) > --- INVENTORY (5) ---- Improved Power Shielding Ghost Barrier Quantum Router Heavy Machine Gun Peak State ------------ > --- POWER ------------ Improved Deuterium Engine > --- PROPULSION ------- Armored Treads Wheel Compact Wheel > --- UTILITY ---------- Improved Heat Sink Large Storage Unit Hardened Light Armor Plating Hardened Medium Armor Plating Improved Light Armor Plating Medium Reflective Plating > --- WEAPON ----------- AWS/Autocannon > --- INVENTORY -------- Improved Deuterium Engine Terrain Scanner Advanced Terrain Scan Processor Makeshift Salvage Targeting Computer Improved Utility Shielding Improved Utility Shielding Cooled Pulse Rifle Gauss Rifle Heavy Assault Cannon Hammer Makeshift Axe [Rating: 58] Favorites ----------- Power Improved Ion Engine Engine Improved Ion Engine Power Core Light Nuclear Core Propulsion Improved Aluminum Leg Treads Armored Treads Leg Improved Aluminum Leg Wheel Wheel Utility Large Storage Unit Device Sensor Array Storage Large Storage Unit Processor Advanced Terrain Scan Processor Protection Hardened Medium Armor Plating Weapon Beam Cannon Energy Gun Cooled Pulse Rifle Energy Cannon Beam Cannon Ballistic Gun Gauss Rifle Ballistic Cannon Heavy Assault Cannon Launcher Grenade Launcher Slashing Weapon Makeshift Axe Special Melee Weapon Datajack Build | -11 -10 -10 -9 -9 -9 -8 -8 -7 -7 -7 -7 -6 ------- Run | Yrd Mat Min Mat Min Exi Min Mat Fac Low Low Dat Pro Slots Evolved 6 | . . . 2 . . . 2 2 . . . . Power . | . . . . . . . . . . . . . Propulsion 1 | . . . . . . . 1 . . . . . Utility 4 | . . . 1 . . . 1 2 . . . . Weapon 1 | . . . 1 . . . . . . . . . Parts Attached 65 | . 12 1 5 1 3 4 12 14 1 4 4 4 Power 5 | . 1 . 1 . . . 1 2 . . . . Engine 4 | . 1 . 1 . . . . 2 . . . . Core 1 | . . . . . . . 1 . . . . . Reactor . | . . . . . . . . . . . . . Propulsion 14 | . 4 . . . . 1 4 2 . 3 . . Treads 1 | . . . . . . . . 1 . . . . Leg 7 | . 4 . . . . 1 2 . . . . . Wheel 6 | . . . . . . . 2 1 . 3 . . Hover . | . . . . . . . . . . . . . Flight . | . . . . . . . . . . . . . Utility 16 | . 2 . 2 . . 1 1 6 1 . 2 1 Device 4 | . 1 . 1 . . 1 . 1 . . . . Storage 1 | . 1 . . . . . . . . . . . Processor 4 | . . . 1 . . . . 1 . . 2 . Hackware . | . . . . . . . . . . . . . Protection 7 | . . . . . . . 1 4 1 . . 1 Artifact . | . . . . . . . . . . . . . Weapon 30 | . 5 1 2 1 3 2 6 4 . 1 2 3 Energy Gun 5 | . 1 . . . . . . 2 . . . 2 Energy Cannon 10 | . 2 . 2 . 2 1 2 1 . . . . Ballistic Gun 3 | . 1 . . . . . . 1 . . . 1 Ballistic Cannon 5 | . . . . . . . 3 . . 1 1 . Launcher 4 | . . 1 . 1 . 1 1 . . . . . Special Weapon . | . . . . . . . . . . . . . Impact Weapon . | . . . . . . . . . . . . . Slashing Weapon 2 | . 1 . . . . . . . . . 1 . Piercing Weapon . | . . . . . . . . . . . . . Special Melee Weapon 1 | . . . . . 1 . . . . . . . Unidentified Prototypes 1 | . . . . . . . . 1 . . . . Parts Lost 21 | . 1 . . . . . 7 2 . 1 8 2 Power 2 | . 1 . . . . . . 1 . . . . Propulsion 8 | . . . . . . . 5 . . . 3 . Utility 7 | . . . . . . . 1 . . 1 4 1 Weapon 4 | . . . . . . . 1 1 . . 1 1 Highest Loss Streak 8 | . 1 . . . . . 5 1 . 1 8 2 To Critical Strikes . | . . . . . . . . . . . . . Average Slot Usage (%) 90 | . 95 100 100 100 100 100 83 80 92 78 64 11 Engine 9 | . 13 14 11 11 11 11 3 5 7 7 5 . Treads 1 | . . . . . . . . 4 7 4 . . Leg 15 | . 27 28 22 22 22 22 21 . . . . . Wheel 4 | . . . . . . . . 11 15 18 19 . Device 14 | . 10 14 14 22 22 22 17 13 8 7 7 2 Storage 10 | . 14 14 11 11 11 11 9 7 7 7 6 . Protection 7 | . . . . . . . 8 19 28 25 19 . Energy Gun 3 | . 10 . . . . . . 3 7 2 . . Energy Cannon 15 | . 5 26 33 26 32 32 16 3 . . . . Ballistic Gun 3 | . 11 . . . . . . 5 7 2 . . Peak Build Rating 58 | 6 10 10 13 13 16 19 45 37 40 58 56 21 Average Rating 19 | 6 9 10 12 13 14 17 21 29 39 34 32 7 On Entrance 17 | 6 6 10 10 13 13 16 19 16 36 40 27 9 Naked Turns . | . . . . . . . . . . . . . Heaviest Build 114 | 14 34 32 38 38 38 38 88 59 62 114 109 10 Greatest Support 38 | 20 26 26 26 26 26 28 38 26 26 36 36 3 Greatest Overweight (x) 9 | . 1 1 1 1 1 1 3 3 2 4 9 3 Average Overweight (x) 1 | . . 1 1 1 1 1 . 1 2 1 1 . Largest Inventory Capacity 15 | 8 15 15 15 15 15 15 15 15 15 15 15 5 Average Capacity 14 | 8 13 15 15 15 15 15 15 15 15 15 14 5 Most Carried 15 | 6 15 15 13 13 15 15 15 15 15 15 15 4 Average Carried 13 | 6 12 14 12 13 14 15 14 14 15 14 13 3 Final Capacity 15 | 8 15 15 15 15 15 15 15 15 15 15 5 5 Final Carried 15 | 6 15 14 13 13 15 15 14 15 15 15 3 4 Class Distribution -------------------- 49% | Mutant 20% | Skirmisher 14% | Commander-Skirmisher 8% | Scavenger-Mutant 4% | Scavenger-Skirmisher Dominant Class ---------------- Mutant | -10/Materials Mutant | -10/Mines Skirmisher | -9/Materials Skirmisher | -9/Mines Commander-Skirmisher | -9/Exiles Skirmisher | -8/Mines Scavenger-Mutant | -8/Materials Mutant | -7/Factory Mutant | -7/Lower Caves Mutant | -7/Lower Caves Mutant | -7/Data Miner Mutant | -6/Proximity Caves Resources | -11 -10 -10 -9 -9 -9 -8 -8 -7 -7 -7 -7 -6 ----------- Run | Yrd Mat Min Mat Min Exi Min Mat Fac Low Low Dat Pro Matter Collected 1162 | 200 256 29 50 20 . 120 80 158 107 75 20 47 Remotely . | . . . . . . . . . . . . . Salvage Created 1934 | . 494 34 204 52 . 267 315 310 62 173 23 . Parts 132 | . 32 5 12 3 . 24 18 23 5 7 3 . Haulers Intercepted . | . . . . . . . . . . . . . Recyclers Shooed 2 | . 2 . . . . . . . . . . . Parts Field Recycled . | . . . . . . . . . . . . . Retrieved Matter . | . . . . . . . . . . . . . Parts Self-Destructed 12 | . . . . . . . . . 5 7 . . Prevented 1 | . . . . . . . . . 1 . . . Kills | -11 -10 -10 -9 -9 -9 -8 -8 -7 -7 -7 -7 -6 ------- Run | Yrd Mat Min Mat Min Exi Min Mat Fac Low Low Dat Pro Combat Hostiles Destroyed 49 | . 12 3 4 4 . 5 9 5 1 6 . . Guns 17 | . 11 . . . . . . 4 1 1 . . Cannons 25 | . 1 . 4 1 . 4 9 1 . 5 . . AOE 7 | . . 3 . 3 . 1 . . . . . . Classes Destroyed 11 | . 4 . 1 1 . 2 1 1 . 1 . . Worker 4 | . . . . 1 . 3 . . . . . . Builder 2 | . . . . . . . . 2 . . . . Tunneler 4 | . . . . . . 4 . . . . . . Recycler 1 | . 1 . . . . . . . . . . . Watcher 1 | . 1 . . . . . . . . . . . Swarmer 16 | . 3 3 . 4 . 2 2 . . 2 . . Grunt 24 | . 9 . 2 . . 2 6 3 . 2 . . Brawler 1 | . . . . . . 1 . . . . . . Sentry 6 | . . . 2 . . . . 2 1 1 . . Programmer 1 | . . . . . . . . . . 1 . . Heavy 1 | . . . . . . . 1 . . . . . Best Kill Streak 5 | . 3 3 2 5 . 3 5 1 1 5 1 . Combat Bots Only 5 | . 3 3 2 4 . 3 5 1 1 5 . . Max Kills in Single Turn 4 | . 2 3 1 4 . 1 1 1 1 1 1 . Gunslinging 1 | . 1 . . . . . . . . . . . Exploded 3 | . . 3 . 3 . 1 . . . . . . Melee . | . . . . . . . . . . . . . Uniques/NPCs Destroyed 1 | . . . . . . . . . . . 1 . Data Miner (-7/Data Miner) Combat | -11 -10 -10 -9 -9 -9 -8 -8 -7 -7 -7 -7 -6 -------- Run | Yrd Mat Min Mat Min Exi Min Mat Fac Low Low Dat Pro Hostile Shots Fired 464 | . 60 5 10 4 . 31 124 47 56 53 44 30 Missed 163 | . 23 3 4 2 . 9 41 20 21 18 13 9 Damage Taken 4846 | . 486 17 87 15 . 288 1214 407 239 398 1295 400 Core 1068 | . 93 . . 7 . 37 217 10 23 36 416 229 Absorbed by Shields . | . . . . . . . . . . . . . Redirected to Shielding 47 | . . . . . . . 47 . . . . . Ignored by Resistances 184 | . . . . . . . . . 16 47 121 . Regen/Repaired (Parts) 148 | . 148 . . . . . . . . . . . Core Remaining (%) 77 | 100 . 62 . . . 89 60 . . . . . Volleys Fired 141 | . 44 7 8 2 . 24 14 27 7 5 . 3 Largest 3 | . 2 2 3 2 . 3 3 3 2 2 . 2 Hottest 180 | . 120 120 180 120 . 180 180 108 48 88 . 50 Shots Fired 343 | . 88 13 24 3 . 72 42 51 11 22 12 5 Gun 153 | . 82 . . . . . . 45 11 10 . 5 Cannon 182 | . 6 12 24 2 . 67 41 6 . 12 12 . Launcher 8 | . . 1 . 1 . 5 1 . . . . . Special . | . . . . . . . . . . . . . Kinetic 116 | . 41 . . . . . 12 24 7 17 12 3 Thermal 219 | . 47 12 24 2 . 67 29 27 4 5 . 2 Explosive 8 | . . 1 . 1 . 5 1 . . . . . Electromagnetic . | . . . . . . . . . . . . . Robot Hit Streak 22 | . 7 3 5 6 . 7 12 11 14 22 6 6 Robot Miss Streak 3 | . 2 2 3 . . 3 2 3 1 1 1 1 Penetration Max . | . . . . . . . . . . . . . Secondary Targets 4 | . 4 . . . . . . . . . . . Max Gunslinging Chain 1 | . 1 . . . . . . . . . . . Autonomous 36 | . . . . . . . 12 . . 12 12 . Shots Hit Robots 230 | . 53 7 16 2 2 40 29 37 9 20 11 4 Core Hits 99 | . 25 4 6 6 . 20 14 13 3 3 4 1 Critical Kills . | . . . . . . . . . . . . . Critical Parts Destroyed 1 | . . . . . . . . . . 1 . . Critical Strikes 9 | . 4 . . . . . . . . 3 2 . Burn 5 | . 4 . . . . . . . . 1 . . Destroy 1 | . . . . . . . . . . 1 . . Blast 3 | . . . . . . . . . . 1 2 . Melee Attacks 6 | . 3 . . . 2 . . . . . 1 . Impact . | . . . . . . . . . . . . . Slashing 4 | . 3 . . . . . . . . . 1 . Piercing . | . . . . . . . . . . . . . Sneak Attacks 3 | . . . . . 2 . . . . . 1 . Combat Hostiles . | . . . . . . . . . . . . . Follow-up Attacks . | . . . . . . . . . . . . . Damage Inflicted 6795 | . 659 264 279 213 . 881 1238 818 184 1261 888 110 Guns 1894 | . 619 . . . . . . 743 174 248 . 110 Cannons 4285 | . 34 121 279 17 . 703 1238 75 . 1007 811 . Explosions 517 | . . 143 . 196 . 178 . . . . . . Melee 77 | . . . . . . . . . . . 77 . Ramming 22 | . 6 . . . . . . . 10 6 . . Kinetic 3647 | . 319 . . . . . 872 369 116 1089 811 71 Thermal 2532 | . 334 121 279 17 . 703 366 449 58 166 . 39 Explosive 517 | . . 143 . 196 . 178 . . . . . . Electromagnetic . | . . . . . . . . . . . . . Impact . | . . . . . . . . . . . . . Slashing 77 | . . . . . . . . . . . 77 . Piercing . | . . . . . . . . . . . . . Highest Corruption 1 | . 1 1 . . . . . . . . . . Average Corruption 1 | . 1 1 . . . . . . . . . . Corruption Purged . | . . . . . . . . . . . . . Corruption Blocked . | . . . . . . . . . . . . . Effects 10 | . 6 4 . . . . . . . . . . Message Errors 2 | . . 2 . . . . . . . . . . Matter Fused 4 | . 3 1 . . . . . . . . . . Energy Discharges 2 | . 2 . . . . . . . . . . . Data Loss (minor) 2 | . 1 1 . . . . . . . . . . Overload Shots 8 | . . . . . . . . 4 . 4 . . Effects 1 | . . . . . . . . 1 . . . . Heat Surge 1 | . . . . . . . . 1 . . . . Overflow Damage 498 | . . . . . . 10 125 . . 325 38 . Projectiles 498 | . . . . . . 10 125 . . 325 38 . Explosions . | . . . . . . . . . . . . . Melee . | . . . . . . . . . . . . . Knockbacks 17 | . . . . . . . 3 . . 4 10 . Impact . | . . . . . . . . . . . . . Kinetic 15 | . . . . . . . 3 . . 4 8 . Secondary 2 | . . . . . . . . . . . 2 . Self-Inflicted Damage 8 | . . . . . . . . . 5 3 . . Shots . | . . . . . . . . . . . . . Rammed 2 | . . . . . . . . . 1 1 . . Targets Rammed 3 | . 1 . . . . . . . 1 1 . . Kicked 1 | . 1 . . . . . . . . . . . Crushed . | . . . . . . . . . . . . . Highest Temperature 360 | . 225 360 333 24 . 353 330 144 8 54 . . Average Temperature 94 | . 59 185 144 16 . 103 128 46 5 27 . . Received Heat Transfer 1293 | . 219 . 27 . . 135 396 171 48 144 . 153 Effects 4 | . 1 . 2 . . . 1 . . . . . Shutdowns 1 | . . . . . . . 1 . . . . . Energy Bleed 1 | . 1 . . . . . . . . . . . Interference 2 | . . . 2 . . . . . . . . . Siege Activations . | . . . . . . . . . . . . . Robots Corrupted . | . . . . . . . . . . . . . Combat Hostiles . | . . . . . . . . . . . . . Parts Fried . | . . . . . . . . . . . . . Impact Corruptions . | . . . . . . . . . . . . . Robots Melted . | . . . . . . . . . . . . . Combat Hostiles . | . . . . . . . . . . . . . Parts Melted 9 | . 1 . 3 . . 1 2 1 . 1 . . Heat Transferred 5717 | . 1258 259 592 37 . 1480 777 792 111 337 . 74 Parts Sabotaged . | . . . . . . . . . . . . . Parts Stolen . | . . . . . . . . . . . . . Parts Stripped . | . . . . . . . . . . . . . Power Chain Reactions . | . . . . . . . . . . . . . Alert | -11 -10 -10 -9 -9 -9 -8 -8 -7 -7 -7 -7 -6 ------- Run | Yrd Mat Min Mat Min Exi Min Mat Fac Low Low Dat Pro Peak Influence 327 | . 327 120 176 186 . 206 191 272 . . . . Initial 77 | . . 42 46 68 . . . 77 . . . . Average 113 | . 147 48 103 133 . 82 90 144 . . . . Maximum Alert Level 1 | . 1 . . . . 1 . 1 . . . . Low Security (%) 80 | 100 68 100 100 100 . 80 100 74 . . . . Level 1 19 | . 31 . . . . 19 . 25 . . . . Level 2 . | . . . . . . . . . . . . . Level 3 . | . . . . . . . . . . . . . Level 4 . | . . . . . . . . . . . . . Level 5 . | . . . . . . . . . . . . . High Security . | . . . . . . . . . . . . . Max Security . | . . . . . . . . . . . . . Squads Dispatched 14 | . 4 . . . . 1 5 4 . . . . Investigation 7 | . 3 . . . . . 2 2 . . . . Extermination . | . . . . . . . . . . . . . Reinforcement 6 | . 1 . . . . 1 2 2 . . . . Assault . | . . . . . . . . . . . . . Garrison 1 | . . . . . . . 1 . . . . . Intercept . | . . . . . . . . . . . . . Searches Triggered . | . . . . . . . . . . . . . Construction Impeded 1 | . . . . . . 1 . . . . . . Haulers Reinforced . | . . . . . . . . . . . . . Active Scanning Responses . | . . . . . . . . . . . . . Cargo Convoy Interrupts . | . . . . . . . . . . . . . Stealth | -11 -10 -10 -9 -9 -9 -8 -8 -7 -7 -7 -7 -6 --------- Run | Yrd Mat Min Mat Min Exi Min Mat Fac Low Low Dat Pro Distress Signals 8 | . 3 . 3 . . 1 1 . . . . . Communications Jammed . | . . . . . . . . . . . . . Distress Signals . | . . . . . . . . . . . . . Times Spotted 109 | . 22 3 9 4 . 10 25 8 2 11 4 11 Peak Tracking Total 15 | . 4 3 4 4 . 3 15 3 1 9 4 6 Tactical Retreats 10 | . 1 . . . . 1 1 . . 3 . 4 Traps | -11 -10 -10 -9 -9 -9 -8 -8 -7 -7 -7 -7 -6 ------- Run | Yrd Mat Min Mat Min Exi Min Mat Fac Low Low Dat Pro Traps Triggered 5 | . 2 . . . . . . 3 . . . . Indirectly . | . . . . . . . . . . . . . Trap Hack Attempts . | . . . . . . . . . . . . . Triggered . | . . . . . . . . . . . . . Disarmed . | . . . . . . . . . . . . . Reprogrammed . | . . . . . . . . . . . . . Reused . | . . . . . . . . . . . . . Traps Extracted . | . . . . . . . . . . . . . Installed 1 | . . . . . . . . . . . . 1 Triggered . | . . . . . . . . . . . . . Machines | -11 -10 -10 -9 -9 -9 -8 -8 -7 -7 -7 -7 -6 ---------- Run | Yrd Mat Min Mat Min Exi Min Mat Fac Low Low Dat Pro Machines Disabled 4 | . . . . . . 3 . 1 . . . . Max in Single Turn 2 | . . . . . . 2 . 1 . . . . Machines Repaired . | . . . . . . . . . . . . . Machines Dismantled . | . . . . . . . . . . . . . Machines Sabotaged . | . . . . . . . . . . . . . Overloaded Fab Kills . | . . . . . . . . . . . . . Hacking | -11 -10 -10 -9 -9 -9 -8 -8 -7 -7 -7 -7 -6 --------- Run | Yrd Mat Min Mat Min Exi Min Mat Fac Low Low Dat Pro Machines Accessed 21 | . 8 . . . 2 . 3 3 1 . 4 . Terminals 9 | . 6 . . . . . 2 1 . . . . Fabricators . | . . . . . . . . . . . . . Repair Stations 2 | . 1 . . . . . . 1 . . . . Recycling Units 1 | . 1 . . . . . . . . . . . Scanalyzers 2 | . . . . . . . 1 1 . . . . Garrison Access . | . . . . . . . . . . . . . Total Hacks 87 | . 31 . . . 2 . 14 8 1 . 31 . Successful 58 | . 12 . . . 2 . 8 4 1 . 31 . Failed 29 | . 19 . . . . . 6 4 . . . . Catastrophic 4 | . 3 . . . . . . 1 . . . . Database Lockouts . | . . . . . . . . . . . . . Manual 32 | . 19 . . . 1 . 8 4 . . . . Terminals 34 | . 23 . . . . . 8 3 . . . . Fabricators . | . . . . . . . . . . . . . Repair Stations 6 | . 4 . . . . . . 2 . . . . Recycling Units 4 | . 4 . . . . . . . . . . . Scanalyzers 9 | . . . . . . . 6 3 . . . . Garrison Access . | . . . . . . . . . . . . . Terminal Hacks 42 | . 5 . . . 2 . 3 . 1 . 31 . Record 12 | . . . . . 1 . . . . . 11 . Part Schematic 9 | . . . . . . . . . . . 9 . Robot Schematic 8 | . . . . . . . . . . . 8 . Prototype ID Bank 4 | . 1 . . . . . . . . . 3 . Open Door 1 | . . . . . . . . . 1 . . . Branch Access Points 2 | . 1 . . . . . 1 . . . . . Terminal Index 1 | . 1 . . . . . . . . . . . Alert Level 2 | . 2 . . . . . . . . . . . Locate Traps 1 | . . . . . . . 1 . . . . . Zone Layout 1 | . . . . . . . 1 . . . . . Derelict Proto ID Bank 1 | . . . . . 1 . . . . . . . Fabricator Hacks . | . . . . . . . . . . . . . Repair Station Hacks 4 | . 4 . . . . . . . . . . . Scan Component 2 | . 2 . . . . . . . . . . . Repair 2 | . 2 . . . . . . . . . . . Recycling Unit Hacks 2 | . 2 . . . . . . . . . . . Report Inventory 1 | . 1 . . . . . . . . . . . Retrieve Components 1 | . 1 . . . . . . . . . . . Scanalyzer 6 | . . . . . . . 4 2 . . . . Insert Component 3 | . . . . . . . 2 1 . . . . Analyze 3 | . . . . . . . 2 1 . . . . Garrison Access Hacks . | . . . . . . . . . . . . . Unauthorized Hacks 4 | . 1 . . . . . 1 2 . . . . Terminals 2 | . . . . . . . 1 1 . . . . Botnet 1 | . . . . . . . . 1 . . . . Search 1 | . . . . . . . 1 . . . . . Fabricators . | . . . . . . . . . . . . . Repair Stations . | . . . . . . . . . . . . . Recycling Units 1 | . 1 . . . . . . . . . . . Tunnel 1 | . 1 . . . . . . . . . . . Scanalyzers 1 | . . . . . . . . 1 . . . . Extract 1 | . . . . . . . . 1 . . . . Garrison Access . | . . . . . . . . . . . . . Data Cores Recovered . | . . . . . . . . . . . . . Used . | . . . . . . . . . . . . . Hacking Detections 14 | . 8 . . . . . 3 3 . . . . Full Trace Events 5 | . 3 . . . . . 1 1 . . . . Feedback Events . | . . . . . . . . . . . . . Feedback Blocked . | . . . . . . . . . . . . . Robot Schematics Acquired 8 | . . . . . . . . . . . 8 . Robots Built . | . . . . . . . . . . . . . Authchips . | . . . . . . . . . . . . . Time . | . . . . . . . . . . . . . Total Robot Build Rating . | . . . . . . . . . . . . . Part Schematics Acquired 21 | . . . . . . . 2 10 . . 9 . Parts Built . | . . . . . . . . . . . . . Authchips . | . . . . . . . . . . . . . Time . | . . . . . . . . . . . . . Total Part Build Rating . | . . . . . . . . . . . . . Parts Repaired 2 | . 2 . . . . . . . . . . . Time 58 | . 58 . . . . . . . . . . . Parts Recycled . | . . . . . . . . . . . . . Recycled Matter . | . . . . . . . . . . . . . Retrieved Matter . | . . . . . . . . . . . . . Retrieved Components 2 | . 2 . . . . . . . . . . . Parts Scanalyzed 3 | . . . . . . . 2 1 . . . . Part Schematics Acquired 3 | . . . . . . . 2 1 . . . . Parts Damaged . | . . . . . . . . . . . . . Bothacking | -11 -10 -10 -9 -9 -9 -8 -8 -7 -7 -7 -7 -6 ------------ Run | Yrd Mat Min Mat Min Exi Min Mat Fac Low Low Dat Pro Used RIF Installer . | . . . . . . . . . . . . . Robots Hacked 2 | . . . . . 2 . . . . . . . Non-combat . | . . . . . . . . . . . . . Combat 2 | . . . . . 2 . . . . . . . Robot Hacks Applied 2 | . . . . . 2 . . . . . . . parse_system 2 | . . . . . 2 . . . . . . . Relay Couplers Released . | . . . . . . . . . . . . . Fabnet Peak Effective % . | . . . . . . . . . . . . . Robots Rewired 6 | . . . . . 6 . . . . . . . Allies Hacked . | . . . . . . . . . . . . . Hacks Repelled . | . . . . . . . . . . . . . Allies | -11 -10 -10 -9 -9 -9 -8 -8 -7 -7 -7 -7 -6 -------- Run | Yrd Mat Min Mat Min Exi Min Mat Fac Low Low Dat Pro Total Allies 6 | . . . . . 6 . . . . . . . Largest Group 6 | . . . . . 6 6 . . . . . . Highest-Rated Group 74 | . . . . . 74 74 . . . . . . Highest-Rated Ally 21 | . . . . . 21 21 . . . . . . Total Orders . | . . . . . . . . . . . . . Ally Attacks 32 | . . . . . . 32 . . . . . . Total Damage 358 | . . . . . . 358 . . . . . . Kills 4 | . . . . . . 4 . . . . . . Allies Corrupted . | . . . . . . . . . . . . . Allies Melted . | . . . . . . . . . . . . . Intel | -11 -10 -10 -9 -9 -9 -8 -8 -7 -7 -7 -7 -6 ------- Run | Yrd Mat Min Mat Min Exi Min Mat Fac Low Low Dat Pro Robot Analysis Total 145 | . . . . . . . . . . . 145 . Derelict Logs Recovered 2 | . . . . . . . . . 1 . . 1 Drone Launches . | . . . . . . . . . . . . . Drone Recoveries . | . . . . . . . . . . . . . Exploration | -11 -10 -10 -9 -9 -9 -8 -8 -7 -7 -7 -7 -6 ------------- Run | Yrd Mat Min Mat Min Exi Min Mat Fac Low Low Dat Pro Turns Passed 4888 | 4 934 216 183 89 753 824 236 475 537 336 124 177 Spaces Moved 2938 | 4 403 102 80 44 373 390 113 293 430 283 108 315 Core 330 | . . . . . . . . . . . 15 315 Treads . | . . . . . . . . . . . . . Legs 1506 | 4 403 102 80 44 373 390 110 . . . . . Wheels 1102 | . . . . . . . 3 293 430 283 93 . Hover . | . . . . . . . . . . . . . Flight . | . . . . . . . . . . . . . Fastest Speed 50 | 120 120 190 190 190 190 190 90 105 120 101 50 50 Average Speed 143 | 120 174 190 190 190 190 190 156 123 120 110 99 50 Slowest Speed 330 | 120 190 190 190 190 190 190 330 145 120 150 215 200 Overloaded Moves . | . . . . . . . . . . . . . Propulsion Burnouts . | . . . . . . . . . . . . . Robots Hopped . | . . . . . . . . . . . . . Cave-ins Triggered . | . . . . . . . . . . . . . Exploration Rate (%) 45 | 2 64 31 15 26 87 80 19 10 66 58 77 60 Regions Visited 12 Branch Regions 8 Pre-discovered Areas 28 | . 1 . . . 1 . . . . . 26 . Known Exits Taken 1 | . 1 . . . . . . . . . . . Unknown Exits Taken 11 | 1 . 1 1 1 1 1 1 1 1 1 1 . Scrap Searched 7 | . . 1 . . . 1 . . 1 1 . 3 Spaces Dug . | . . . . . . . . . . . . . Terrain Destroyed 45 | . . 8 . 8 . 23 2 1 . 1 2 . Melee . | . . . . . . . . . . . . . Projectile 6 | . . . . . . . 2 1 . 1 2 . AOE 39 | . . 8 . 8 . 23 . . . . . . Terrain Rammed . | . . . . . . . . . . . . . Walls Destroyed . | . . . . . . . . . . . . . Machines Disabled . | . . . . . . . . . . . . . Actions | -11 -10 -10 -9 -9 -9 -8 -8 -7 -7 -7 -7 -6 --------- Run | Yrd Mat Min Mat Min Exi Min Mat Fac Low Low Dat Pro Total 3332 | 3 539 112 92 46 416 419 150 356 441 299 130 329 Wait 81 | . 62 . . . 3 . 2 9 1 . 1 3 Move 2927 | 3 402 101 79 43 372 389 112 292 430 282 107 315 Hop . | . . . . . . . . . . . . . Pick Up 24 | . 10 1 . . 2 . 1 6 1 . 3 . Fast Attach 16 | . 4 . . . . . 3 7 . . . 2 Attach 21 | . 1 . 2 . . . 7 4 . 1 4 2 Detach 18 | . 1 . . . . . 6 2 . 3 3 3 Swap 28 | . 7 1 3 1 3 4 2 3 1 3 . . Drop 35 | . 4 2 . . 2 2 3 6 1 4 11 . Fire 141 | . 44 7 8 2 . 24 14 27 7 5 . 3 Melee 6 | . 3 . . . 2 . . . . . 1 . Ram 1 | . . . . . . . . . . 1 . . Kick 1 | . 1 . . . . . . . . . . . Crush . | . . . . . . . . . . . . . Escape Stasis . | . . . . . . . . . . . . . Rewire 32 | . . . . . 32 . . . . . . . Trap 1 | . . . . . . . . . . . . 1 Miscellaneous . | . . . . . . . . . . . . . Route ------- -11/Scrapyard -10/Materials (discovered 3 exits: [*Mat x2] / *Min) -10/Mines -9/Materials -9/Mines (discovered 2 exits: *Mat / *Exi) -9/Exiles -8/Mines -8/Materials -7/Factory -7/Lower Caves -7/Lower Caves -7/Data Miner -6/Proximity Caves (discovered 1 exit: [*Fac]) History --------- Turn | Location | Event 1 | -11/Scrapyard | Discovered new exit (range 1) 5 | -11/Scrapyard | Entered Materials 119 | -10/Materials | Discovered new exit (range 10) 248 | -10/Materials | Discovered new exit (range 11) 310 | -10/Materials | Build established: Mutant 696 | -10/Materials | Repaired Imp. Aluminum Leg 723 | -10/Materials | Repaired Med. Laser 869 | -10/Materials | Identified exit to Mines 939 | -10/Materials | Entered Mines 1087 | -10/Mines | YI-UF0 nonchalantly dropped a Grenade Launcher on the ground 1142 | -10/Mines | Discovered new exit (range 8) 1155 | -10/Mines | Entered Materials 1155 | -9/Materials | Evolved 2 slots: Utility x1, Weapon x1 1317 | -9/Materials | Discovered new exit (range 12) 1338 | -9/Materials | Entered Mines 1375 | -9/Mines | Found a hidden stash of uninstalled traps 1406 | -9/Mines | Discovered new exit (range 10) 1419 | -9/Mines | Deemed a non-threat by the Exiles lab entrance 1419 | -9/Mines | Discovered new exit (range 5) 1427 | -9/Mines | Entered Exiles 1427 | -9/Exiles | Found Exiles lab destroyed 1448 | -9/Exiles | Build established: Skirmisher 1673 | -9/Exiles | Opened EX-Vault 1683 | -9/Exiles | Found AWS/Autocannon 1797 | -9/Exiles | Learned location of Zion (-6) 2041 | -9/Exiles | Build established: Commander-Skirmisher 2144 | -9/Exiles | Discovered new exit (range 15) 2180 | -9/Exiles | Entered Mines 2180 | -8/Mines | Accompanied by 6 allies 2364 | -8/Mines | Lost 4 allies 2633 | -8/Mines | Build established: Skirmisher 2988 | -8/Mines | Discovered new exit (range 8) 3004 | -8/Mines | Entered Materials 3004 | -8/Materials | Evolved 2 slots: Propulsion x1, Utility x1 3223 | -8/Materials | Discovered new exit (range 6) 3223 | -8/Materials | Garrison activated, responded to threat 3240 | -8/Materials | Entered Factory 3240 | -7/Factory | Evolved 2 slots: Utility x2 3270 | -7/Factory | Lost 5 parts (4n1u) 3695 | -7/Factory | Discovered new exit (range 6) 3715 | -7/Factory | Entered Lower Caves 4019 | -7/Lower Caves | Encountered a Warlord checkpoint 4081 | -7/Lower Caves | Build established: Mutant 4219 | -7/Lower Caves | Attracted the attention of an 0b10 checkpoint 4226 | -7/Lower Caves | Discovered new exit (range 15) 4252 | -7/Lower Caves | Entered another Lower Caves area 4266 | -7/Lower Caves | Attracted the attention of an 0b10 checkpoint 4424 | -7/Lower Caves | Encountered a Warlord checkpoint 4578 | -7/Lower Caves | Discovered new exit (range 10) 4588 | -7/Lower Caves | Entered Data Miner 4588 | -7/Data Miner | Discovered new exit (range 6) 4608 | -7/Data Miner | Met Data Miner 4632 | -7/Data Miner | Learned location of Section 7 (-2) 4632 | -7/Data Miner | Acquired the access code to Warlord's prototype stash 4645 | -7/Data Miner | Received God Mode back door access code from Data Miner 4668 | -7/Data Miner | Destroyed Data Miner 4670 | -7/Data Miner | Interfaced with the Data Conduit 4674 | -7/Data Miner | Found Prototype Hackware 4678 | -7/Data Miner | Found Prototype Hackware 4710 | -7/Data Miner | Core integrity fell below 50% 4712 | -7/Data Miner | Entered Proximity Caves 4739 | -6/Proximity Caves | Lost 8 parts (3n4u1w) 4773 | -6/Proximity Caves | Core integrity fell below 20% 4811 | -6/Proximity Caves | Attracted the attention of an 0b10 checkpoint 4886 | -6/Proximity Caves | Discovered new exit (range 10) 4889 | -6/Proximity Caves | Destroyed by S-27 Virus with Autogun Last Messages --------------- 04757_ Found 51 Matter. 04758_ Acquired 15 matter. 04758_ Acquired Hvy. Machine Gun. 04762_ Acquired Imp. Power Shielding. 04770_ Cld. Pulse Rifle destroyed. 04777_ Imp. Heat Sink destroyed. 04796_ Searching scrap... 04796_ Found EM Disruption Field. 04796_ Found Mak. Spear. 04796_ Found 43 Matter. 04797_ Acquired 32 matter. 04811_ Y-54 Guardian: "INTERCEPTING UNREGISTERED DERELICT." 04818_ Searching scrap... 04818_ Found Greatsword. 04818_ Found 67 Matter. 04846_ Installed Fire Trap. 04848_ M-22 Extractor reprogrammed Fire Trap. 04856_ Acquired derelict log, extracted data. Data stored: Upper Caves entrances (x1). 04886_ EXIT=FOUND Map ----- +----------------------------------------------------+ | ###?????# ### #?????????????? | | ##?????### ## ##? #?????????????? | | ##??????????## ###? ##?????????????? | | #####???#### ##??? ##??????????????? | | ##?## ##??? #???????????????? | | ### ###? ## #???????????????? | | #? #? ???????????????? | | ## #? #? ##??????????????? | | #### ##? #####???????????????? | | #### #??# ###### ##?????????????????? | | #??## #??# #??## #?????????????????? | | #???## #??### #?## ??????????????????? | | ###??### #????# ### #????????????????????? | | #????## ##????# ## #?????????????????????? | | #?????## ##????## ###???????????????????? | | ######## #?????# %*#???????????????????? | | #?????# ##??????????????????? | | ###### ###?????# ## #??????????????????? | | #????# #???????# ######ss #??#???????????????? | | ##????# #???????# ##???## ##? ##??????????????? | | #?????# #???????## ?????# ## #??????????????? | | #?????# ????????##????## #??????????????? | | ????? ?????????????## #??????????????? | | ????? #????????????## #??????????????? | | ????? ##?????????#### ## #?????????????? | | #????? ???????????# @#?# #?????????????? | | #?????? ????? #?# #?????????????? | | ??????? ?????# < ##??# ##?????????????? | | ???????#?????## ### ##????# ##??????????????? | | ??????????????###???## #???????##???????????????? | | ?????????????????????###?????????????????????????? | | ?????????????????????????????????????????????????? | | ?????????????????????????????????????????????????? | | ?????????????????????????????????????????????????? | | ?????????????????????????????????????????????????? | | ?????????????????????????????????????????????????? | | ?????????????????????????????????????????????????? | | ?????????????????????????????????????????????????? | | ?????????????????????????????????????????????????? | | ?????????????????????????????????????????????????? | | ?????????????????????????????????????????????????? | | ?????????????????????????????????????????????????? | | ?????????????????????????????????????????????????? | | ?????????????????????????????????????????????????? | | ?????????????????????????????????????????????????? | | ?????????????????????????????????????????????????? | | | | | | | | | +----------------------------------------------------+ Best States ------------- Heat Dissipation 48 Energy Generation 16 Energy Capacity 290 Matter Stores 300 Matter Capacity 300 Sight Range 16 Robot Scan Range 14 Terrain Scan Density 210 Armor Coverage 750 Resistance: TH 15 Utility Shielding 33 Evasion (%) 55 Recoil Reduction 1 Salvage Targeting 4 Item Schematics ----------------- Hrd. Medium Armor Plating | -8/Materials | Scanalyzed Mak. Salvage Targeting Computer | -8/Materials | Scanalyzed Hvy. Assault Cannon | -7/Factory | Scanalyzed Arc Projector | -7/Factory | Extracted Imp. EM Shotgun | -7/Factory | Extracted Huge Storage Unit | -7/Factory | Extracted Launcher Guidance Computer | -7/Factory | Extracted Com. Matter Pod | -7/Factory | Extracted Adv. Visual Processing Unit | -7/Factory | Extracted Cld. Pulse Rifle | -7/Factory | Extracted Seismic Detector | -7/Factory | Extracted System Restoration Module | -7/Factory | Extracted Combat Drone Bay | -7/Data Miner | Free Lgt. Regenerative Plating | -7/Data Miner | Free Cld. Cesium-ion Thruster | -7/Data Miner | Free Gravity Neutralizer | -7/Data Miner | Free Force Rifle | -7/Data Miner | Free Linear Gravjet | -7/Data Miner | Free Adv. Cooling System | -7/Data Miner | Free Lrn. Proton Cannon | -7/Data Miner | Free Imp. Particle Charger | -7/Data Miner | Free Robot Schematics ------------------ A-15 Conveyor | -7/Data Miner | Free E-15 Imp | -7/Data Miner | Free P-60 Hacker | -7/Data Miner | Free W-25 Informer | -7/Data Miner | Free D-63 Destroyer | -7/Data Miner | Free G-50 Soldier | -7/Data Miner | Free Y-54 Guardian | -7/Data Miner | Free S-27 Virus | -7/Data Miner | Free Fabricated ------------ Nothing Alien Tech Used ----------------- None Achievements -------------- None Challenges ------------ None Game ------ Seed AmuletNeutrinoStorm Manual? 0 Play Time 00:38:08 Cumulative 961.4 hours Start 2024.10.11 @ 21:12:47 End 2024.10.11 @ 22:07:20 Sessions 1 Manual Loads 0 Difficulty Rogue Special Mode None Game No. 1175 Rogue 895 Adventurer 124 Explorer 156 Win Type - Total 41 Types 28/0/8/3/1/0/0/1/0 Lore% 85 Gallery% 90 Achievement% 78 Wizard Run 0 Options --------- Layout 0 ASCII 0 Keyboard 1 Movement Numpad Keybinds 0 Fullscreen 2 Font 18/X11 Map View 76x50 Zoom Use 1% Tactical HUD 1 Map Filters NONE Filters NONE Steam 1 RUN: 68bfecf6-be53-4029-b16e-6c2a2627157c